[Event "Titled Tuesday Blitz March 01 Late 2022"]
[White "Sadhwani, Raunak"]
[Black "Grischuk, Alexander"]
[WhiteFideId "35093487"]
[BlackFideId "4126025"]
[WhiteElo "2616"]
[BlackElo "2762"]
[Result "1-0"]
[Round "07"]
[TimeControl "180+1"]
[Date "2022.03.01"]
[WhiteClock "0:01:38"]
[BlackClock "0:00:44"]

1. e4 {[%clk 0:03:00]}  d5 {[%clk 0:03:00]} 2. exd5 {[%clk 0:03:00]}  Qxd5 {[%clk 0:03:01]} 3. Nf3 {[%clk 0:02:58]}  Bg4 {[%clk 0:03:00]} 4. Be2 {[%clk 0:02:57]}  Nc6 {[%clk 0:03:00]} 5. h3 {[%clk 0:02:40]}  Bxf3 {[%clk 0:03:00]} 6. Bxf3 {[%clk 0:02:41]}  Qe6+ {[%clk 0:03:00]} 7. Qe2 {[%clk 0:02:41]}  Qxe2+ {[%clk 0:03:00]} 8. Bxe2 {[%clk 0:02:42]}  Nd4 {[%clk 0:02:45]} 9. Bd1 {[%clk 0:02:35]}  e5 {[%clk 0:02:45]} 10. c3 {[%clk 0:02:34]}  Ne6 {[%clk 0:02:43]} 11. d3 {[%clk 0:02:32]}  O-O-O {[%clk 0:02:40]} 12. Bc2 {[%clk 0:02:32]}  g6 {[%clk 0:02:23]} 13. g3 {[%clk 0:02:17]}  Bh6 {[%clk 0:02:17]} 14. Nd2 {[%clk 0:02:09]}  Nf6 {[%clk 0:02:06]} 15. Ke2 {[%clk 0:02:03]}  Nd5 {[%clk 0:01:56]} 16. h4 {[%clk 0:01:59]}  Rhe8 {[%clk 0:01:18]} 17. h5 {[%clk 0:01:57]}  Bg5 {[%clk 0:01:18]} 18. hxg6 {[%clk 0:01:55]}  hxg6 {[%clk 0:01:19]} 19. Nc4 {[%clk 0:01:52]}  f6 {[%clk 0:01:10]} 20. Bxg5 {[%clk 0:01:47]}  Nxg5 {[%clk 0:01:11]} 21. Rh6 {[%clk 0:01:47]}  Ne7 {[%clk 0:01:06]} 22. Rah1 {[%clk 0:01:43]}  Rg8 {[%clk 0:00:58]} 23. Ne3 {[%clk 0:01:43]}  Kb8 {[%clk 0:00:50]} 24. Bb3 {[%clk 0:01:38]}  Rgf8 {[%clk 0:00:44]} 25. f4 {[%clk 0:01:38]} 1-0


[Site "https://www.chess.com"]

[Event "Titled Tuesday Blitz March 01 Late 2022"]
[White "Sailer, Mike"]
[Black "Kovanova, Baira"]
[WhiteFideId "2012901"]
[BlackFideId "4164083"]
[WhiteElo "2109"]
[BlackElo "2190"]
[Result "0-1"]
[Round "07"]
[TimeControl "180+1"]
[Date "2022.03.02"]
[WhiteClock "0:00:01"]
[BlackClock "0:00:53"]

1. d4 {[%clk 0:02:59]}  Nf6 {[%clk 0:02:59]} 2. Nf3 {[%clk 0:02:56]}  e6 {[%clk 0:02:59]} 3. Bf4 {[%clk 0:02:50]}  d5 {[%clk 0:02:58]} 4. e3 {[%clk 0:02:48]}  Bd6 {[%clk 0:02:58]} 5. Bg3 {[%clk 0:02:45]}  c5 {[%clk 0:02:57]} 6. c3 {[%clk 0:02:42]}  Qc7 {[%clk 0:02:56]} 7. Nbd2 {[%clk 0:02:35]}  O-O {[%clk 0:02:53]} 8. Bd3 {[%clk 0:02:32]}  Nbd7 {[%clk 0:02:49]} 9. O-O {[%clk 0:02:21]}  e5 {[%clk 0:02:48]} 10. Nxe5 {[%clk 0:02:11]}  Nxe5 {[%clk 0:02:48]} 11. dxe5 {[%clk 0:02:10]}  Bxe5 {[%clk 0:02:48]} 12. Nf3 {[%clk 0:02:05]}  Bxg3 {[%clk 0:02:47]} 13. hxg3 {[%clk 0:02:03]}  Bg4 {[%clk 0:02:41]} 14. Qc2 {[%clk 0:01:58]}  Qd6 {[%clk 0:02:32]} 15. Rad1 {[%clk 0:01:53]}  h6 {[%clk 0:02:22]} 16. Bf5 {[%clk 0:01:42]}  Rad8 {[%clk 0:02:11]} 17. c4 {[%clk 0:01:23]}  Bxf3 {[%clk 0:01:57]} 18. gxf3 {[%clk 0:01:20]}  d4 {[%clk 0:01:57]} 19. exd4 {[%clk 0:01:11]}  cxd4 {[%clk 0:01:57]} 20. c5 {[%clk 0:01:12]}  Qd5 {[%clk 0:01:54]} 21. Be4 {[%clk 0:01:07]}  Nxe4 {[%clk 0:01:51]} 22. fxe4 {[%clk 0:01:01]}  Qxa2 {[%clk 0:01:51]} 23. Ra1 {[%clk 0:00:47]}  Qe6 {[%clk 0:01:51]} 24. Rxa7 {[%clk 0:00:45]}  d3 {[%clk 0:01:51]} 25. Qa4 {[%clk 0:00:41]}  Qe5 {[%clk 0:01:19]} 26. Rxb7 {[%clk 0:00:31]}  Qxc5 {[%clk 0:01:18]} 27. Rd1 {[%clk 0:00:25]}  Qc2 {[%clk 0:01:13]} 28. Qa1 {[%clk 0:00:23]}  d2 {[%clk 0:01:07]} 29. Rb5 {[%clk 0:00:17]}  Qxe4 {[%clk 0:01:06]} 30. Rb3 {[%clk 0:00:12]}  Rfe8 {[%clk 0:01:02]} 31. Re3 {[%clk 0:00:09]}  Qc2 {[%clk 0:01:02]} 32. Rxe8+ {[%clk 0:00:06]}  Rxe8 {[%clk 0:01:01]} 33. Kh2 {[%clk 0:00:01]}  Re2 {[%clk 0:00:55]} 34. Kg2 {[%clk 0:00:01]}  Qe4+ {[%clk 0:00:53]} 0-1


[Site "https://www.chess.com"]

[Event "Titled Tuesday Blitz March 01 Late 2022"]
[White "Salinas Herrera, Pablo"]
[Black "Fishbein, Alexander"]
[WhiteFideId "3407128"]
[BlackFideId "2000377"]
[WhiteElo "2541"]
[BlackElo "2442"]
[Result "1-0"]
[Round "07"]
[TimeControl "180+1"]
[Date "2022.03.01"]
[WhiteClock "0:01:27"]
[BlackClock "0:00:07"]

1. d4 {[%clk 0:03:00]}  Nf6 {[%clk 0:02:59]} 2. Nf3 {[%clk 0:03:01]}  g6 {[%clk 0:02:59]} 3. Nbd2 {[%clk 0:03:01]}  Bg7 {[%clk 0:02:55]} 4. e4 {[%clk 0:03:00]}  d6 {[%clk 0:02:55]} 5. Bb5+ {[%clk 0:03:00]}  c6 {[%clk 0:02:53]} 6. Bd3 {[%clk 0:03:01]}  Nbd7 {[%clk 0:02:50]} 7. O-O {[%clk 0:03:01]}  e5 {[%clk 0:02:50]} 8. c3 {[%clk 0:03:01]}  O-O {[%clk 0:02:49]} 9. Re1 {[%clk 0:03:01]}  Re8 {[%clk 0:02:35]} 10. h3 {[%clk 0:03:02]}  b6 {[%clk 0:02:28]} 11. a4 {[%clk 0:03:01]}  a6 {[%clk 0:02:27]} 12. Nf1 {[%clk 0:03:01]}  Bb7 {[%clk 0:02:27]} 13. Ng3 {[%clk 0:03:01]}  exd4 {[%clk 0:02:26]} 14. cxd4 {[%clk 0:03:01]}  c5 {[%clk 0:02:26]} 15. d5 {[%clk 0:03:00]}  Rc8 {[%clk 0:02:22]} 16. Bc4 {[%clk 0:02:50]}  b5 {[%clk 0:01:56]} 17. axb5 {[%clk 0:02:48]}  Nb6 {[%clk 0:01:56]} 18. bxa6 {[%clk 0:02:48]}  Nxc4 {[%clk 0:01:56]} 19. axb7 {[%clk 0:02:48]}  Rb8 {[%clk 0:01:56]} 20. Qb3 {[%clk 0:02:37]}  Na5 {[%clk 0:01:52]} 21. Qb5 {[%clk 0:02:32]}  Nxb7 {[%clk 0:01:49]} 22. Ra7 {[%clk 0:02:29]}  Qd7 {[%clk 0:01:46]} 23. Qa6 {[%clk 0:02:22]}  Qc8 {[%clk 0:01:28]} 24. Bf4 {[%clk 0:02:20]}  Bf8 {[%clk 0:01:20]} 25. Rc1 {[%clk 0:02:19]}  Nxe4 {[%clk 0:01:16]} 26. b4 {[%clk 0:02:15]}  Qd7 {[%clk 0:01:06]} 27. Nxe4 {[%clk 0:01:55]}  Rxe4 {[%clk 0:01:05]} 28. bxc5 {[%clk 0:01:55]}  Rxf4 {[%clk 0:00:57]} 29. c6 {[%clk 0:01:56]}  Qf5 {[%clk 0:00:38]} 30. Rxb7 {[%clk 0:01:54]}  Re8 {[%clk 0:00:38]} 31. c7 {[%clk 0:01:51]}  Rxf3 {[%clk 0:00:36]} 32. Rb8 {[%clk 0:01:34]}  Rxf2 {[%clk 0:00:20]} 33. Rxe8 {[%clk 0:01:34]}  Rxg2+ {[%clk 0:00:19]} 34. Kxg2 {[%clk 0:01:35]}  Qg5+ {[%clk 0:00:19]} 35. Kf2 {[%clk 0:01:35]}  Qf4+ {[%clk 0:00:12]} 36. Ke2 {[%clk 0:01:35]}  Qxc1 {[%clk 0:00:10]} 37. Rxf8+ {[%clk 0:01:35]}  Kg7 {[%clk 0:00:09]} 38. c8=Q {[%clk 0:01:27]}  Qb2+ {[%clk 0:00:09]} 39. Kd1 {[%clk 0:01:27]}  Qd4+ {[%clk 0:00:08]} 40. Kc2 {[%clk 0:01:26]}  Qf2+ {[%clk 0:00:07]} 41. Kb3 {[%clk 0:01:27]}  Qf3+ {[%clk 0:00:07]} 42. Qc3+ {[%clk 0:01:27]} 1-0


[Site "https://www.chess.com"]

[Event "Titled Tuesday Blitz March 01 Late 2022"]
[White "Sarana, Alexey"]
[Black "Gareyev, Timur"]
[WhiteFideId "24133795"]
[BlackFideId "14200937"]
[WhiteElo "2665"]
[BlackElo "2586"]
[Result "0-1"]
[Round "07"]
[TimeControl "180+1"]
[Date "2022.03.01"]
[WhiteClock "0:00:02"]
[BlackClock "0:00:14"]

1. d4 {[%clk 0:03:00]}  Nf6 {[%clk 0:02:59]} 2. c4 {[%clk 0:03:01]}  e6 {[%clk 0:02:59]} 3. Nc3 {[%clk 0:03:02]}  Bb4 {[%clk 0:02:59]} 4. e3 {[%clk 0:03:02]}  b6 {[%clk 0:02:52]} 5. Ne2 {[%clk 0:02:59]}  Bb7 {[%clk 0:02:35]} 6. a3 {[%clk 0:02:59]}  Bd6 {[%clk 0:02:32]} 7. d5 {[%clk 0:02:48]}  O-O {[%clk 0:02:31]} 8. Ng3 {[%clk 0:02:46]}  Be5 {[%clk 0:02:31]} 9. Bd2 {[%clk 0:02:38]}  exd5 {[%clk 0:02:15]} 10. cxd5 {[%clk 0:02:37]}  Nxd5 {[%clk 0:02:13]} 11. Nxd5 {[%clk 0:02:20]}  Bxd5 {[%clk 0:02:14]} 12. Bd3 {[%clk 0:02:20]}  Nc6 {[%clk 0:02:10]} 13. f4 {[%clk 0:02:11]}  Bxb2 {[%clk 0:01:59]} 14. Rb1 {[%clk 0:02:11]}  Bxa3 {[%clk 0:01:26]} 15. Qh5 {[%clk 0:02:10]}  f5 {[%clk 0:01:20]} 16. Bxf5 {[%clk 0:02:05]}  Rxf5 {[%clk 0:01:15]} 17. Qxf5 {[%clk 0:02:03]}  Ne7 {[%clk 0:01:11]} 18. Qd3 {[%clk 0:02:01]}  Bc5 {[%clk 0:01:09]} 19. O-O {[%clk 0:01:59]}  a5 {[%clk 0:01:09]} 20. Kh1 {[%clk 0:01:57]}  a4 {[%clk 0:01:08]} 21. e4 {[%clk 0:01:57]}  Bf7 {[%clk 0:01:03]} 22. Bc3 {[%clk 0:01:55]}  d5 {[%clk 0:01:01]} 23. Rfd1 {[%clk 0:01:26]}  a3 {[%clk 0:00:51]} 24. Qf3 {[%clk 0:00:59]}  a2 {[%clk 0:00:50]} 25. Rbc1 {[%clk 0:00:58]}  d4 {[%clk 0:00:47]} 26. Ba1 {[%clk 0:00:57]}  Ra3 {[%clk 0:00:47]} 27. Qg4 {[%clk 0:00:56]}  Qc8 {[%clk 0:00:36]} 28. Qxc8+ {[%clk 0:00:28]}  Nxc8 {[%clk 0:00:36]} 29. Nf5 {[%clk 0:00:29]}  Nd6 {[%clk 0:00:35]} 30. Nxd6 {[%clk 0:00:21]}  cxd6 {[%clk 0:00:35]} 31. h4 {[%clk 0:00:15]}  b5 {[%clk 0:00:35]} 32. f5 {[%clk 0:00:13]}  Bc4 {[%clk 0:00:33]} 33. Re1 {[%clk 0:00:06]}  d3 {[%clk 0:00:33]} 34. Rcd1 {[%clk 0:00:05]}  d2 {[%clk 0:00:24]} 35. Rxd2 {[%clk 0:00:05]}  Bb4 {[%clk 0:00:24]} 36. Red1 {[%clk 0:00:02]}  Bxd2 {[%clk 0:00:23]} 37. Rxd2 {[%clk 0:00:03]}  Rb3 {[%clk 0:00:23]} 38. Kh2 {[%clk 0:00:04]}  Rb1 {[%clk 0:00:23]} 39. Bd4 {[%clk 0:00:03]}  b4 {[%clk 0:00:22]} 40. e5 {[%clk 0:00:02]}  dxe5 {[%clk 0:00:21]} 41. Bxe5 {[%clk 0:00:03]}  a1=Q {[%clk 0:00:18]} 42. Rd8+ {[%clk 0:00:03]}  Kf7 {[%clk 0:00:18]} 43. Bxa1 {[%clk 0:00:04]}  Rxa1 {[%clk 0:00:17]} 44. Rb8 {[%clk 0:00:04]}  b3 {[%clk 0:00:17]} 45. g4 {[%clk 0:00:04]}  Kf6 {[%clk 0:00:17]} 46. Kg3 {[%clk 0:00:02]}  Ra4 {[%clk 0:00:17]} 47. h5 {[%clk 0:00:01]}  h6 {[%clk 0:00:16]} 48. Rb6+ {[%clk 0:00:02]}  Ke5 {[%clk 0:00:16]} 49. Rb7 {[%clk 0:00:03]}  Bd5 {[%clk 0:00:14]} 50. Rxg7 {[%clk 0:00:02]}  b2 {[%clk 0:00:14]} 51. Re7+ {[%clk 0:00:02]}  Kd4 {[%clk 0:00:14]} 52. Re1 {[%clk 0:00:02]}  Ra1 {[%clk 0:00:14]} 0-1


[Site "https://www.chess.com"]

[Event "Titled Tuesday Blitz March 01 Late 2022"]
[White "Sarkar, Justin"]
[Black "Curtis, John"]
[WhiteFideId "2010011"]
[BlackFideId "3200256"]
[WhiteElo "2038"]
[BlackElo "2203"]
[Result "0-1"]
[Round "07"]
[TimeControl "180+1"]
[Date "2022.03.02"]
[WhiteClock "0:00:01"]
[BlackClock "0:00:56"]

1. d4 {[%clk 0:02:52]}  Nf6 {[%clk 0:02:59]} 2. c4 {[%clk 0:02:51]}  e6 {[%clk 0:02:59]} 3. Nf3 {[%clk 0:02:48]}  Bb4+ {[%clk 0:02:58]} 4. Bd2 {[%clk 0:02:47]}  Qe7 {[%clk 0:02:58]} 5. a3 {[%clk 0:02:36]}  Bxd2+ {[%clk 0:02:58]} 6. Qxd2 {[%clk 0:02:32]}  d6 {[%clk 0:02:58]} 7. Nc3 {[%clk 0:02:29]}  O-O {[%clk 0:02:56]} 8. e4 {[%clk 0:02:19]}  e5 {[%clk 0:02:56]} 9. d5 {[%clk 0:02:17]}  Bg4 {[%clk 0:02:54]} 10. Qe3 {[%clk 0:02:08]}  Bxf3 {[%clk 0:02:53]} 11. Qxf3 {[%clk 0:02:07]}  Nbd7 {[%clk 0:02:44]} 12. b4 {[%clk 0:02:02]}  a5 {[%clk 0:02:44]} 13. Rc1 {[%clk 0:01:43]}  axb4 {[%clk 0:02:43]} 14. axb4 {[%clk 0:01:44]}  Ra3 {[%clk 0:02:41]} 15. Qd1 {[%clk 0:01:33]}  c6 {[%clk 0:02:39]} 16. Be2 {[%clk 0:01:21]}  Rc8 {[%clk 0:02:24]} 17. O-O {[%clk 0:01:11]}  cxd5 {[%clk 0:02:24]} 18. exd5 {[%clk 0:01:07]}  e4 {[%clk 0:02:10]} 19. Qd4 {[%clk 0:00:59]}  Rca8 {[%clk 0:01:39]} 20. Rfe1 {[%clk 0:00:37]}  g6 {[%clk 0:01:22]} 21. Bd3 {[%clk 0:00:24]}  Qe5 {[%clk 0:01:16]} 22. Qxe5 {[%clk 0:00:19]}  Nxe5 {[%clk 0:01:15]} 23. Bf1 {[%clk 0:00:18]}  Rb3 {[%clk 0:01:08]} 24. c5 {[%clk 0:00:06]}  Rxb4 {[%clk 0:01:06]} 25. cxd6 {[%clk 0:00:06]}  Rd8 {[%clk 0:01:06]} 26. Nb5 {[%clk 0:00:05]}  Nxd5 {[%clk 0:00:58]} 27. Rcd1 {[%clk 0:00:05]}  Nf6 {[%clk 0:00:57]} 28. f3 {[%clk 0:00:03]}  Nd3 {[%clk 0:00:57]} 29. Bxd3 {[%clk 0:00:02]}  exd3 {[%clk 0:00:57]} 30. Nc3 {[%clk 0:00:01]}  Rxd6 {[%clk 0:00:56]} 0-1


[Site "https://www.chess.com"]

[Event "Titled Tuesday Blitz March 01 Late 2022"]
[White "Steenbekkers, Franck"]
[Black "Alfaro, William"]
[WhiteFideId "1004220"]
[BlackFideId "6100457"]
[WhiteElo "2180"]
[BlackElo "2066"]
[Result "1-0"]
[Round "07"]
[TimeControl "180+1"]
[Date "2022.03.02"]
[WhiteClock "0:00:09"]
[BlackClock "0:00:47"]

1. e4 {[%clk 0:03:00]}  c5 {[%clk 0:02:58]} 2. Nf3 {[%clk 0:02:59]}  Nc6 {[%clk 0:02:58]} 3. d4 {[%clk 0:02:58]}  cxd4 {[%clk 0:02:59]} 4. Nxd4 {[%clk 0:02:58]}  Nf6 {[%clk 0:02:59]} 5. Nc3 {[%clk 0:02:58]}  e5 {[%clk 0:02:57]} 6. Ndb5 {[%clk 0:02:58]}  d6 {[%clk 0:02:57]} 7. Nd5 {[%clk 0:02:57]}  Nxd5 {[%clk 0:02:57]} 8. exd5 {[%clk 0:02:58]}  Ne7 {[%clk 0:02:57]} 9. c4 {[%clk 0:02:56]}  Nf5 {[%clk 0:02:57]} 10. Qa4 {[%clk 0:02:54]}  Bd7 {[%clk 0:02:57]} 11. Qb4 {[%clk 0:02:50]}  a6 {[%clk 0:02:48]} 12. Nc3 {[%clk 0:02:44]}  Nd4 {[%clk 0:02:48]} 13. Bd3 {[%clk 0:02:41]}  f5 {[%clk 0:02:48]} 14. Be3 {[%clk 0:02:38]}  Be7 {[%clk 0:02:45]} 15. Bxd4 {[%clk 0:02:34]}  exd4 {[%clk 0:02:45]} 16. Ne2 {[%clk 0:02:34]}  O-O {[%clk 0:02:46]} 17. O-O {[%clk 0:02:29]}  Bf6 {[%clk 0:02:45]} 18. Rfe1 {[%clk 0:02:27]}  Qc7 {[%clk 0:02:43]} 19. b3 {[%clk 0:02:25]}  a5 {[%clk 0:02:34]} 20. Qd2 {[%clk 0:02:23]}  a4 {[%clk 0:02:34]} 21. Nf4 {[%clk 0:02:21]}  Bg5 {[%clk 0:02:31]} 22. g3 {[%clk 0:02:14]}  axb3 {[%clk 0:02:27]} 23. axb3 {[%clk 0:02:13]}  Rxa1 {[%clk 0:02:28]} 24. Rxa1 {[%clk 0:02:12]}  Qb6 {[%clk 0:02:26]} 25. b4 {[%clk 0:02:06]}  Re8 {[%clk 0:02:26]} 26. Rc1 {[%clk 0:01:59]}  Qa6 {[%clk 0:02:25]} 27. c5 {[%clk 0:01:57]}  Qa3 {[%clk 0:02:22]} 28. c6 {[%clk 0:01:55]}  bxc6 {[%clk 0:02:22]} 29. dxc6 {[%clk 0:01:54]}  Bc8 {[%clk 0:02:22]} 30. b5 {[%clk 0:01:49]}  h6 {[%clk 0:02:19]} 31. b6 {[%clk 0:01:46]}  Be6 {[%clk 0:02:12]} 32. c7 {[%clk 0:01:42]}  Bc8 {[%clk 0:02:11]} 33. Bc4+ {[%clk 0:01:37]}  Kh7 {[%clk 0:02:10]} 34. Rb1 {[%clk 0:01:29]}  Bb7 {[%clk 0:02:09]} 35. Qd3 {[%clk 0:01:21]}  Qc5 {[%clk 0:02:05]} 36. Bd5 {[%clk 0:01:15]}  Bc8 {[%clk 0:01:43]} 37. b7 {[%clk 0:01:09]}  Qxc7 {[%clk 0:01:33]} 38. b8=Q {[%clk 0:01:06]}  Qc5 {[%clk 0:01:25]} 39. Qb4 {[%clk 0:00:45]}  Qc7 {[%clk 0:01:14]} 40. Qbxd4 {[%clk 0:00:39]}  Re5 {[%clk 0:01:12]} 41. h4 {[%clk 0:00:33]}  Bf6 {[%clk 0:01:11]} 42. Nh5 {[%clk 0:00:32]}  Be7 {[%clk 0:01:09]} 43. Rd1 {[%clk 0:00:26]}  g6 {[%clk 0:01:08]} 44. Nf4 {[%clk 0:00:25]}  Bf6 {[%clk 0:01:08]} 45. h5 {[%clk 0:00:24]}  g5 {[%clk 0:01:08]} 46. Ng6 {[%clk 0:00:21]}  Re6 {[%clk 0:01:07]} 47. Qxf5 {[%clk 0:00:17]}  Re1+ {[%clk 0:00:46]} 48. Rxe1 {[%clk 0:00:14]}  Bxd4 {[%clk 0:00:47]} 49. Ne7+ {[%clk 0:00:11]}  Kg7 {[%clk 0:00:47]} 50. Qg6+ {[%clk 0:00:10]}  Kf8 {[%clk 0:00:47]} 51. Qg8# {[%clk 0:00:09]} 1-0


[Site "https://www.chess.com"]

[Event "Titled Tuesday Blitz March 01 Late 2022"]
[White "Tari, Aryan"]
[Black "Li, Ben"]
[WhiteFideId "1510045"]
[BlackFideId "2089980"]
[WhiteElo "2567"]
[BlackElo "2267"]
[Result "1-0"]
[Round "07"]
[TimeControl "180+1"]
[Date "2022.03.01"]
[WhiteClock "0:00:50"]
[BlackClock "0:00:06"]

1. c4 {[%clk 0:03:00]}  e6 {[%clk 0:02:59]} 2. g3 {[%clk 0:02:58]}  d5 {[%clk 0:03:00]} 3. Bg2 {[%clk 0:02:58]}  Nf6 {[%clk 0:03:00]} 4. Nf3 {[%clk 0:02:55]}  Be7 {[%clk 0:03:00]} 5. d4 {[%clk 0:02:50]}  O-O {[%clk 0:02:58]} 6. Nc3 {[%clk 0:02:51]}  b6 {[%clk 0:02:47]} 7. O-O {[%clk 0:02:40]}  Bb7 {[%clk 0:02:47]} 8. b3 {[%clk 0:02:36]}  Nbd7 {[%clk 0:02:45]} 9. Bb2 {[%clk 0:02:37]}  c5 {[%clk 0:02:44]} 10. cxd5 {[%clk 0:02:32]}  Nxd5 {[%clk 0:02:44]} 11. Nxd5 {[%clk 0:02:28]}  Bxd5 {[%clk 0:02:45]} 12. Qd3 {[%clk 0:02:21]}  cxd4 {[%clk 0:02:40]} 13. Bxd4 {[%clk 0:02:14]}  Bf6 {[%clk 0:02:26]} 14. Rad1 {[%clk 0:02:14]}  Nc5 {[%clk 0:01:54]} 15. Qe3 {[%clk 0:02:12]}  Bxd4 {[%clk 0:01:52]} 16. Rxd4 {[%clk 0:02:13]}  Qf6 {[%clk 0:01:47]} 17. Ne5 {[%clk 0:02:08]}  Bxg2 {[%clk 0:01:46]} 18. Kxg2 {[%clk 0:02:09]}  a5 {[%clk 0:01:38]} 19. Rfd1 {[%clk 0:01:57]}  Rac8 {[%clk 0:01:34]} 20. h4 {[%clk 0:01:57]}  Rfd8 {[%clk 0:01:18]} 21. Rd6 {[%clk 0:01:40]}  Rb8 {[%clk 0:00:54]} 22. Nc6 {[%clk 0:01:25]}  Rxd6 {[%clk 0:00:52]} 23. Rxd6 {[%clk 0:01:26]}  Rc8 {[%clk 0:00:48]} 24. Ne5 {[%clk 0:01:26]}  Rb8 {[%clk 0:00:43]} 25. Nc4 {[%clk 0:01:22]}  Qe7 {[%clk 0:00:41]} 26. Rxb6 {[%clk 0:01:18]}  Rxb6 {[%clk 0:00:40]} 27. Nxb6 {[%clk 0:01:19]}  Qb7+ {[%clk 0:00:39]} 28. Qf3 {[%clk 0:01:19]}  Qa7 {[%clk 0:00:29]} 29. Qc6 {[%clk 0:01:17]}  Qb7 {[%clk 0:00:26]} 30. Qxb7 {[%clk 0:01:16]}  Nxb7 {[%clk 0:00:27]} 31. Kf3 {[%clk 0:01:10]}  Kf8 {[%clk 0:00:27]} 32. Ke4 {[%clk 0:01:10]}  Ke7 {[%clk 0:00:27]} 33. Kd4 {[%clk 0:01:10]}  Kd6 {[%clk 0:00:27]} 34. Nc4+ {[%clk 0:01:10]}  Kd7 {[%clk 0:00:26]} 35. Ne5+ {[%clk 0:01:10]}  Ke7 {[%clk 0:00:27]} 36. Kc4 {[%clk 0:01:09]}  f6 {[%clk 0:00:27]} 37. Nd3 {[%clk 0:01:09]}  e5 {[%clk 0:00:23]} 38. Kd5 {[%clk 0:01:05]}  h5 {[%clk 0:00:20]} 39. a4 {[%clk 0:01:04]}  g5 {[%clk 0:00:19]} 40. Nc5 {[%clk 0:00:50]}  gxh4 {[%clk 0:00:18]} 41. gxh4 {[%clk 0:00:49]}  Nd6 {[%clk 0:00:17]} 42. e4 {[%clk 0:00:49]}  f5 {[%clk 0:00:16]} 43. Kxe5 {[%clk 0:00:48]}  fxe4 {[%clk 0:00:16]} 44. Nxe4 {[%clk 0:00:48]}  Nf7+ {[%clk 0:00:10]} 45. Kd5 {[%clk 0:00:48]}  Nh6 {[%clk 0:00:09]} 46. Ng3 {[%clk 0:00:49]}  Ng4 {[%clk 0:00:08]} 47. Nxh5 {[%clk 0:00:46]}  Nxf2 {[%clk 0:00:09]} 48. Ng3 {[%clk 0:00:46]}  Nd3 {[%clk 0:00:06]} 49. Kc4 {[%clk 0:00:46]}  Nc1 {[%clk 0:00:06]} 50. h5 {[%clk 0:00:45]}  Kf6 {[%clk 0:00:06]} 51. Ne4+ {[%clk 0:00:45]}  Kg7 {[%clk 0:00:06]} 52. Nc5 {[%clk 0:00:45]}  Kh6 {[%clk 0:00:06]} 53. Nb7 {[%clk 0:00:46]}  Kxh5 {[%clk 0:00:06]} 54. Nxa5 {[%clk 0:00:47]}  Kg6 {[%clk 0:00:07]} 55. Nc6 {[%clk 0:00:47]}  Ne2 {[%clk 0:00:05]} 56. a5 {[%clk 0:00:47]}  Nf4 {[%clk 0:00:06]} 57. a6 {[%clk 0:00:47]}  Ne6 {[%clk 0:00:06]} 58. Kb5 {[%clk 0:00:46]}  Nc7+ {[%clk 0:00:05]} 59. Kb6 {[%clk 0:00:47]}  Nxa6 {[%clk 0:00:02]} 60. Kxa6 {[%clk 0:00:47]}  Kf6 {[%clk 0:00:03]} 61. b4 {[%clk 0:00:47]}  Ke6 {[%clk 0:00:04]} 62. b5 {[%clk 0:00:48]}  Kd6 {[%clk 0:00:05]} 63. b6 {[%clk 0:00:48]}  Kxc6 {[%clk 0:00:06]} 64. b7 {[%clk 0:00:49]}  Kc7 {[%clk 0:00:06]} 65. Ka7 {[%clk 0:00:50]} 1-0


[Site "https://www.chess.com"]

[Event "Titled Tuesday Blitz March 01 Late 2022"]
[White "Tomiello, Mateus Costamilan"]
[Black "Martins, Carlos"]
[WhiteFideId "22701958"]
[BlackFideId "2101688"]
[WhiteElo "1975"]
[BlackElo "2183"]
[Result "1-0"]
[Round "07"]
[TimeControl "180+1"]
[Date "2022.03.02"]
[WhiteClock "0:00:08"]
[BlackClock "0:00:19"]

1. e4 {[%clk 0:03:00]}  e6 {[%clk 0:02:55]} 2. d4 {[%clk 0:03:00]}  d5 {[%clk 0:02:55]} 3. Nc3 {[%clk 0:03:01]}  Bb4 {[%clk 0:02:55]} 4. e5 {[%clk 0:03:01]}  c5 {[%clk 0:02:55]} 5. a3 {[%clk 0:02:59]}  Bxc3+ {[%clk 0:02:55]} 6. bxc3 {[%clk 0:02:59]}  Qa5 {[%clk 0:02:55]} 7. Bd2 {[%clk 0:02:58]}  Qa4 {[%clk 0:02:55]} 8. Nf3 {[%clk 0:02:58]}  b6 {[%clk 0:02:53]} 9. Bd3 {[%clk 0:02:52]}  Ba6 {[%clk 0:02:52]} 10. O-O {[%clk 0:02:52]}  Ne7 {[%clk 0:02:48]} 11. Be3 {[%clk 0:02:30]}  Nd7 {[%clk 0:02:41]} 12. Bxa6 {[%clk 0:02:24]}  Qxa6 {[%clk 0:02:40]} 13. a4 {[%clk 0:02:25]}  Rc8 {[%clk 0:02:22]} 14. Nd2 {[%clk 0:02:18]}  Nf5 {[%clk 0:02:12]} 15. Nb3 {[%clk 0:02:16]}  O-O {[%clk 0:02:06]} 16. a5 {[%clk 0:02:12]}  Qc4 {[%clk 0:02:04]} 17. axb6 {[%clk 0:02:06]}  axb6 {[%clk 0:02:03]} 18. Ra7 {[%clk 0:02:03]}  Nb8 {[%clk 0:01:54]} 19. Qd3 {[%clk 0:01:37]}  cxd4 {[%clk 0:01:38]} 20. Qxc4 {[%clk 0:01:28]}  Rxc4 {[%clk 0:01:34]} 21. Nxd4 {[%clk 0:01:25]}  Nxe3 {[%clk 0:01:31]} 22. fxe3 {[%clk 0:01:23]}  Rxc3 {[%clk 0:01:31]} 23. Rb1 {[%clk 0:01:19]}  Rxe3 {[%clk 0:01:25]} 24. Rxb6 {[%clk 0:01:15]}  Rxe5 {[%clk 0:01:20]} 25. Rbb7 {[%clk 0:00:59]}  Re1+ {[%clk 0:01:16]} 26. Kf2 {[%clk 0:00:59]}  Rd1 {[%clk 0:01:16]} 27. c3 {[%clk 0:00:59]}  Rd2+ {[%clk 0:01:06]} 28. Kf1 {[%clk 0:00:50]}  Rd3 {[%clk 0:00:59]} 29. Rc7 {[%clk 0:00:28]}  e5 {[%clk 0:00:57]} 30. Ke2 {[%clk 0:00:24]}  e4 {[%clk 0:00:53]} 31. Ne6 {[%clk 0:00:22]}  Nc6 {[%clk 0:00:42]} 32. Nxf8 {[%clk 0:00:13]}  Nxa7 {[%clk 0:00:40]} 33. Nd7 {[%clk 0:00:13]}  f5 {[%clk 0:00:34]} 34. Ne5 {[%clk 0:00:12]}  h6 {[%clk 0:00:27]} 35. Nxd3 {[%clk 0:00:11]}  exd3+ {[%clk 0:00:28]} 36. Kxd3 {[%clk 0:00:12]}  Nb5 {[%clk 0:00:27]} 37. Rc5 {[%clk 0:00:12]}  Nd6 {[%clk 0:00:23]} 38. Rxd5 {[%clk 0:00:12]}  Ne4 {[%clk 0:00:23]} 39. Rxf5 {[%clk 0:00:10]}  Ng5 {[%clk 0:00:24]} 40. h4 {[%clk 0:00:10]}  Ne6 {[%clk 0:00:24]} 41. Kc4 {[%clk 0:00:09]}  Nd8 {[%clk 0:00:22]} 42. Rc5 {[%clk 0:00:08]}  Nb7 {[%clk 0:00:21]} 43. Rc8+ {[%clk 0:00:07]}  Kh7 {[%clk 0:00:21]} 44. Kd5 {[%clk 0:00:07]}  Kg6 {[%clk 0:00:20]} 45. c4 {[%clk 0:00:07]}  Kf7 {[%clk 0:00:19]} 46. Rc7+ {[%clk 0:00:07]}  Kf6 {[%clk 0:00:19]} 47. Rxb7 {[%clk 0:00:08]} 1-0


[Site "https://www.chess.com"]